bitfinex/quotes_BTCUSD_20250714
["timestamp","ask_amount","ask_price","bid_price","bid_amount"]
[1752482276760,0.17351257,122440.0,122430.0,0.26932711]
[1752482277483,0.17351257,122440.0,122430.0,0.27749504]
[1752482278179,0.17351257,122440.0,122430.0,0.26932711]
[1752482279099,0.16534531,122440.0,122430.0,0.26932711]
[1752482284256,0.16534531,122440.0,122430.0,0.14464711]
[1752482284472,0.16534531,122440.0,122430.0,0.26932711]
[1752482284699,0.16434244,122440.0,122430.0,0.26932711]
[1752482285756,0.16434244,122440.0,122430.0,0.58900706]
[1752482285997,0.16434244,122440.0,122430.0,0.14464711]
[1752482286203,0.16434244,122440.0,122430.0,0.26932711]
[1752482290649,0.16434244,122440.0,122430.0,0.14464711]
[1752482290857,0.1725097,122440.0,122430.0,0.26928711]
[1752482291076,0.001,122440.0,122430.0,0.6927634]
[1752482291285,0.17251204,122440.0,122430.0,0.70093119]
[1752482291525,0.001,122440.0,122430.0,0.84190631]
[1752482291726,0.00916666,122440.0,122430.0,0.84190631]
[1752482291939,0.18783128,122450.0,122440.0,0.0633]
[1752482292142,0.18783128,122450.0,122440.0,0.38297995]
[1752482292353,0.18783128,122450.0,122440.0,0.50761995]
[1752482292788,0.17966469,122450.0,122440.0,0.50761995]
[1752482292995,0.18783128,122450.0,122440.0,0.52395434]
[1752482293230,0.18783128,122450.0,122440.0,0.50761995]
[1752482293438,0.18883128,122450.0,122440.0,0.51578721]
[1752482293849,0.18883128,122450.0,122440.0,0.38297995]
[1752482294066,0.18883128,122450.0,122440.0,0.50761995]
[1752482294235,0.18066502,122450.0,122440.0,0.39114714]
[1752482294437,0.18066502,122450.0,122440.0,0.38297995]
[1752482294672,0.18066502,122450.0,122440.0,0.50761995]
[1752482294867,0.18066502,122450.0,122440.0,0.18794]
[1752482296310,0.17249856,122450.0,122440.0,0.0633]
[1752482296534,0.17249856,122450.0,122440.0,0.18794]
[1752482300189,0.17249856,122450.0,122440.0,0.0633]
[1752482300418,0.17249856,122450.0,122440.0,0.18794]
[1752482301045,0.17249856,122450.0,122440.0,0.0633]
[1752482301246,0.17249856,122450.0,122440.0,0.18794]
[1752482301474,0.17249856,122450.0,122440.0,0.0633]
[1752482301720,0.17249856,122450.0,122440.0,0.18794]
[1752482304089,0.17249856,122450.0,122440.0,0.0633]
[1752482304313,0.17249856,122450.0,122440.0,0.18794]
[1752482304771,0.17249856,122450.0,122440.0,0.0633]
[1752482305165,0.17249856,122450.0,122440.0,0.18794]
[1752482308737,0.17249856,122450.0,122440.0,0.0633]
[1752482308979,0.18883102,122450.0,122440.0,0.57082677]
[1752482309199,0.2051636,122450.0,122440.0,0.69542677]
[1752482309837,0.2051636,122450.0,122440.0,0.37574682]
[1752482310021,0.2051636,122450.0,122440.0,0.69542684]
[1752482310156,0.2051636,122450.0,122440.0,0.7035939]
[1752482310562,0.19699701,122450.0,122440.0,0.5789939]
[1752482310780,0.001,122450.0,122440.0,1.25774753]
[1752482311832,0.02549885,122450.0,122440.0,1.25774753]
[1752482312084,0.02549885,122450.0,122440.0,1.25874753]
[1752482312330,0.01733246,122450.0,122440.0,1.25874753]
[1752482312541,0.01733239,122450.0,122440.0,1.25874753]
[1752482312746,0.01633239,122450.0,122440.0,1.25874753]
[1752482312931,0.00816613,122450.0,122440.0,1.25974753]
[1752482313175,0.01633239,122450.0,122440.0,1.25974753]
[1752482313584,0.02449878,122450.0,122440.0,1.25974753]
[1752482314017,0.00816613,122450.0,122440.0,1.25974753]
[1752482314311,0.01633246,122450.0,122440.0,1.25974753]
[1752482314561,0.01633246,122450.0,122440.0,1.2597476]
[1752482314764,0.00816613,122450.0,122440.0,1.2597472]
[1752482315179,0.01633239,122450.0,122440.0,1.2597472]
[1752482316053,0.00816613,122450.0,122440.0,1.2597472]
[1752482316912,0.01633232,122450.0,122440.0,1.0105072]
[1752482317097,0.01633232,122450.0,122440.0,1.1351072]
[1752482317435,0.00816613,122450.0,122440.0,1.1351072]
[1752482317647,0.00816613,122450.0,122440.0,1.0105072]
[1752482317860,0.00816613,122450.0,122440.0,1.1351072]
[1752482318039,0.01633239,122450.0,122440.0,1.1351072]
[1752482319328,0.00816613,122450.0,122440.0,1.1351072]
[1752482319848,0.00816613,122450.0,122440.0,1.0105072]
[1752482320028,0.01633239,122450.0,122440.0,1.1351072]
[1752482320449,0.00816613,122450.0,122440.0,1.1351072]
[1752482320688,0.18783075,122450.0,122440.0,0.48664711]
[1752482320882,0.17966482,122450.0,122440.0,0.48664711]
[1752482321096,0.17149843,122450.0,122440.0,0.57964711]
[1752482321886,0.17149843,122450.0,122440.0,0.4940143]
[1752482322147,0.17966429,122450.0,122440.0,1.10980643]
[1752482322348,0.18783068,122450.0,122440.0,1.1016395]
[1752482322642,0.01633232,122450.0,122440.0,1.11797322]
[1752482322848,0.17966429,122450.0,122440.0,0.99337329]
[1752482323057,0.17966429,122450.0,122440.0,1.12614008]
[1752482323288,0.17966422,122450.0,122440.0,1.12614008]
[1752482323621,0.01633219,122450.0,122440.0,1.00154008]
[1752482323809,0.19599674,122450.0,122440.0,1.1016395]
[1752482324118,0.19599668,122450.0,122440.0,1.11797328]
[1752482324319,0.19599668,122450.0,122440.0,1.10980649]
[1752482324534,0.20416314,122450.0,122440.0,1.1016395]
[1752482324750,0.19599708,122450.0,122440.0,0.93829425]
[1752482324950,0.18783062,122450.0,122440.0,0.99337361]
[1752482325183,0.17966429,122450.0,122440.0,1.11797361]
[1752482325373,0.17966429,122450.0,122440.0,1.12614047]
[1752482325511,0.19599715,122450.0,122440.0,0.97703956]
[1752482325716,0.19599761,122450.0,122440.0,0.48584711]
[1752482325909,0.19599761,122450.0,122440.0,0.61040711]
[1752482326193,0.19599761,122450.0,122440.0,0.61857437]
[1752482326521,0.19599761,122450.0,122440.0,0.61040711]
[1752482326764,0.19599761,122450.0,122440.0,0.61857437]
[1752482326924,0.17966415,122450.0,122440.0,1.00154074]
[1752482327135,0.17966415,122450.0,122440.0,1.12610074]
[1752482327385,0.17966409,122450.0,122440.0,1.13426753]
[1752482327594,0.18783035,122450.0,122440.0,1.12610074]
[1752482327795,0.01633218,122450.0,122440.0,1.13426753]
[1752482328141,0.17966415,122450.0,122440.0,0.79825393]
[1752482328348,0.17966415,122450.0,122440.0,1.13426773]
[1752482328564,0.20416346,122450.0,122440.0,0.61040711]
[1752482328783,0.19599747,122450.0,122440.0,0.61040711]
[1752482328992,0.19599747,122450.0,122440.0,0.61857437]
[1752482329205,0.19599747,122450.0,122440.0,0.61040711]
[1752482329424,0.19599747,122450.0,122440.0,0.61857437]
[1752482329606,0.19599747,122450.0,122440.0,0.61040711]
[1752482330038,0.19599747,122450.0,122440.0,0.61857424]
[1752482330754,0.19599747,122450.0,122440.0,0.6185743]
[1752482330963,0.19599747,122450.0,122440.0,0.62674143]
[1752482331590,0.19599747,122450.0,122440.0,0.6185743]
[1752482331897,0.19599747,122450.0,122440.0,0.62674156]
[1752482332686,0.19599747,122450.0,122440.0,0.61857437]
[1752482332895,0.19599747,122450.0,122440.0,0.62674156]
[1752482333091,0.19599747,122450.0,122440.0,0.61857437]
[1752482334262,0.19599747,122450.0,122440.0,0.62674156]
[1752482334440,0.19599747,122450.0,122440.0,0.61857437]
[1752482334591,0.19599747,122450.0,122440.0,0.62674156]
[1752482335255,0.19599747,122450.0,122440.0,0.61040711]
[1752482335464,0.19599747,122450.0,122440.0,0.62674156]
[1752482335838,0.19599747,122450.0,122440.0,0.63490869]
[1752482336041,0.19599747,122450.0,122440.0,0.798254]
[1752482336239,0.19599747,122450.0,122440.0,0.61857437]
[1752482336448,0.19599747,122450.0,122440.0,0.62674156]
[1752482337274,0.19599747,122450.0,122440.0,0.29490869]
[1752482337491,0.19599741,122450.0,122440.0,0.27857437]
[1752482337719,0.19599741,122450.0,122440.0,0.29490869]
[1752482337934,0.18620536,122450.0,122440.0,0.29490869]
[1752482338366,0.19437155,122450.0,122440.0,0.46642106]
[1752482338589,0.17803863,122450.0,122440.0,0.69002799]
[1752482338813,0.18620462,122450.0,122440.0,1.13426754]
[1752482339281,0.2025376,122450.0,122440.0,1.10976669]
[1752482339488,0.2025376,122450.0,122440.0,1.10159956]
[1752482339704,0.19437161,122450.0,122440.0,0.61040711]
[1752482340151,0.17803909,122450.0,122440.0,0.48584711]
[1752482340367,0.17803909,122450.0,122440.0,0.61040711]
[1752482340579,0.17803909,122450.0,122440.0,0.57960711]
[1752482341019,0.17803909,122450.0,122440.0,0.45504711]
[1752482341226,0.17803909,122450.0,122440.0,0.57960711]
[1752482342706,0.17803909,122450.0,122440.0,0.61190711]
[1752482343123,0.17803909,122450.0,122440.0,0.85178068]
[1752482343328,0.17803909,122450.0,122440.0,0.61190711]
[1752482343534,0.17803909,122450.0,122440.0,0.85178068]
[1752482344101,0.17803909,122450.0,122440.0,0.85994794]
[1752482344302,0.17803909,122450.0,122440.0,0.85178068]
[1752482345090,0.17803869,122450.0,122440.0,0.85994787]
[1752482345294,0.18620515,122450.0,122440.0,0.85994787]
[1752482345606,0.18620515,122450.0,122440.0,1.09982144]
[1752482346109,0.17803869,122450.0,122440.0,1.09982144]
[1752482346309,0.17803869,122450.0,122440.0,1.10798857]
[1752482346515,0.18620522,122450.0,122440.0,1.09982151]
[1752482346750,0.18620522,122450.0,122440.0,1.09165425]
[1752482346958,0.18620522,122450.0,122440.0,1.1079887]
[1752482347064,0.18620462,122450.0,122440.0,1.27950107]
[1752482347470,0.18620462,122450.0,122440.0,1.28766806]
[1752482347680,0.18620462,122450.0,122440.0,1.27950107]
[1752482347884,0.16824673,122450.0,122440.0,1.27950107]
[1752482348097,0.17641306,122450.0,122440.0,1.27950107]
[1752482348308,0.17641299,122450.0,122440.0,1.27133401]
[1752482348518,0.18457938,122450.0,122440.0,1.27950114]
[1752482348722,0.18457938,122450.0,122440.0,1.2876682]
[1752482348928,0.17641299,122450.0,122440.0,1.27950114]
[1752482349124,0.17641299,122450.0,122440.0,1.28766813]
[1752482349385,0.17641299,122450.0,122440.0,1.29583506]
[1752482349583,0.18457938,122450.0,122440.0,1.29583513]
[1752482349826,0.01633212,122450.0,122440.0,1.29583466]
[1752482350256,0.17153193,122470.0,122460.0,0.17148449]
[1752482350477,0.17969719,122470.0,122460.0,0.52065357]
[1752482350673,0.17969719,122470.0,122460.0,0.55345357]
[1752482351086,0.1715322,122470.0,122460.0,0.55345357]
[1752482351546,0.17165742,122470.0,122460.0,0.55345357]
[1752482351697,0.17365742,122470.0,122460.0,0.55345357]
[1752482352588,0.17465742,122470.0,122460.0,0.55345357]
[1752482352824,0.17465742,122470.0,122460.0,0.55855305]
[1752482355153,0.17465742,122470.0,122460.0,0.56671898]
[1752482355339,0.17465742,122470.0,122460.0,0.55855305]
[1752482356221,0.16649216,122470.0,122460.0,0.55855305]
[1752482357436,0.40636573,122470.0,122460.0,0.25417948]
[1752482359930,0.16649216,122470.0,122460.0,0.25417948]
[1752482360140,0.40636573,122470.0,122460.0,0.25417948]
[1752482360564,0.40636573,122470.0,122460.0,0.25417951]
[1752482361878,0.16499216,122470.0,122460.0,0.31747951]
[1752482362311,0.17315735,122470.0,122460.0,0.31747951]
[1752482362531,0.17315735,122470.0,122460.0,0.55735308]
[1752482364124,0.17315735,122470.0,122460.0,0.31747951]
[1752482364361,0.19092509,122470.0,122460.0,1.06638944]
[1752482364601,0.02761967,122470.0,122460.0,0.8265158]
[1752482365035,0.02761967,122470.0,122460.0,0.90634926]
[1752482365450,0.19909009,122470.0,122460.0,0.8981838]
[1752482365653,0.19909009,122470.0,122460.0,0.57847684]
[1752482366090,0.19909009,122470.0,122460.0,0.58664243]
[1752482366304,0.19909009,122470.0,122460.0,0.58664215]
[1752482366613,0.19909009,122470.0,122460.0,0.59480768]
[1752482367037,0.19909009,122470.0,122460.0,0.57847656]
[1752482367257,0.20725535,122470.0,122460.0,0.59480781]
[1752482367493,0.19909009,122470.0,122460.0,0.60297294]
[1752482367704,0.19909009,122470.0,122460.0,0.59480748]
[1752482367921,0.20725528,122470.0,122460.0,0.59480748]
[1752482368338,0.20725528,122470.0,122460.0,0.58664195]
[1752482368571,0.20725528,122470.0,122460.0,0.59480748]
[1752482368801,0.20725528,122470.0,122460.0,0.57847636]
[1752482369039,0.19909062,122470.0,122460.0,0.57847636]
[1752482369253,0.19909062,122470.0,122460.0,0.57847631]
[1752482369519,0.19909062,122470.0,122460.0,0.59480743]
[1752482369712,0.19909062,122470.0,122460.0,0.5866419]
[1752482369968,0.19909069,122470.0,122460.0,0.57847631]
[1752482370179,0.19909069,122470.0,122460.0,0.5866419]
[1752482370757,0.19909069,122470.0,122460.0,0.57847658]
[1752482370903,0.19092583,122470.0,122460.0,0.39882629]
[1752482371114,0.1827609,122470.0,122460.0,0.39882629]
[1752482371780,0.17147055,122470.0,122460.0,0.39882629]
[1752482373001,0.17147055,122470.0,122460.0,0.39372711]
[1752482379713,0.17148442,122460.0,122450.0,0.12947769]
[1752482379960,0.17966495,122450.0,122440.0,0.4044]
[1752482380227,0.17966495,122450.0,122440.0,0.48574711]
[1752482380461,0.17966495,122450.0,122440.0,0.61022711]
[1752482381484,0.17966495,122450.0,122440.0,0.61122711]
[1752482381889,0.16987367,122450.0,122440.0,0.61122711]
[1752482382341,0.16987367,122450.0,122440.0,0.61222711]
[1752482385315,0.16170728,122450.0,122440.0,0.61222711]
[1752482385560,0.16170728,122450.0,122440.0,0.4064]
[1752482386030,0.16170728,122450.0,122440.0,0.53088]
[1752482386251,0.16170728,122450.0,122440.0,0.4064]
[1752482386487,0.16170728,122450.0,122440.0,0.53088]
[1752482388161,0.16987327,122450.0,122440.0,0.70239244]
[1752482388392,0.16987327,122450.0,122440.0,1.03026653]
[1752482388636,0.1780398,122450.0,122440.0,1.03026653]
[1752482388877,0.19599667,122450.0,122440.0,0.91395346]
[1752482389130,0.20416313,122450.0,122440.0,1.03843346]
[1752482389850,0.2041632,122450.0,122440.0,1.03843346]
[1752482390107,0.19599667,122450.0,122440.0,1.03843346]
[1752482390353,0.16331863,122460.0,122450.0,0.1714985]
[1752482390652,0.18781587,122460.0,122450.0,0.32072659]
[1752482390854,0.18781527,122460.0,122450.0,0.82009838]
[1752482391064,0.00816553,122460.0,122450.0,0.90961162]
[1752482391273,0.18779987,122470.0,122460.0,0.23508442]
[1752482391452,0.18779987,122470.0,122460.0,0.81191711]
[1752482391669,0.19596506,122470.0,122460.0,0.48404442]
[1752482391857,0.17800962,122470.0,122460.0,0.32072593]
[1752482392028,0.18617468,122470.0,122460.0,0.32072593]
[1752482392231,0.17963554,122470.0,122460.0,0.31256]
[1752482392662,0.18063554,122470.0,122460.0,0.32072593]
[1752482392866,0.18063554,122470.0,122460.0,0.32889179]
[1752482393138,0.18063554,122470.0,122460.0,0.32072593]
[1752482393526,0.18063554,122470.0,122460.0,0.32889179]
[1752482394166,0.18063554,122470.0,122460.0,0.33705758]
[1752482395375,0.18063554,122470.0,122460.0,0.5167076]
[1752482395593,0.18063554,122470.0,122460.0,0.50854194]
[1752482395795,0.18063554,122470.0,122460.0,0.50037621]
[1752482395998,0.18063554,122470.0,122460.0,0.50854194]
[1752482396205,0.18063521,122470.0,122460.0,0.50854167]
[1752482396411,0.18880034,122470.0,122460.0,0.50037601]
[1752482396539,0.1969656,122470.0,122460.0,0.8282487]
[1752482397140,0.1969656,122470.0,122460.0,0.82008304]
[1752482397347,0.1969656,122470.0,122460.0,0.8282487]
[1752482397565,0.18880034,122470.0,122460.0,0.83641429]
[1752482397996,0.18880034,122470.0,122460.0,0.50854167]
[1752482398228,0.1969656,122470.0,122460.0,0.50854167]
[1752482398436,0.1969656,122470.0,122460.0,0.50037601]
[1752482398650,0.1969656,122470.0,122460.0,0.25141601]
[1752482398854,0.00916466,122470.0,122460.0,0.37589601]
[1752482399080,0.001,122470.0,122460.0,1.00880127]
[1752482399536,0.001,122470.0,122460.0,1.13328127]
[1752482399745,0.002,122470.0,122460.0,1.13328127]
[1752482399956,0.002,122470.0,122460.0,1.00880127]
[1752482400158,0.00866333,122490.0,122480.0,0.18778495]
[1752482400398,0.0005,122490.0,122480.0,0.65213909]
[1752482400905,0.0005,122490.0,122480.0,0.77657909]
[1752482402252,0.01682679,122490.0,122480.0,0.77657909]
[1752482402460,0.02499038,122490.0,122480.0,0.65213909]
[1752482402665,0.00866333,122490.0,122480.0,0.65213909]
[1752482402863,0.0005,122490.0,122480.0,0.77657909]
[1752482404346,0.00866339,122490.0,122480.0,0.65213909]
[1752482404560,0.00866339,122490.0,122480.0,0.77657909]
[1752482404785,0.01682692,122490.0,122480.0,0.65313909]
[1752482404991,0.02499058,122490.0,122480.0,0.77757909]
[1752482405193,0.01682692,122490.0,122480.0,0.77757909]
[1752482405620,0.02499065,122490.0,122480.0,0.77757909]
[1752482405848,0.01682692,122490.0,122480.0,0.45787206]
[1752482406060,0.02499058,122490.0,122480.0,0.45787206]
[1752482406719,0.02499058,122490.0,122480.0,0.46603625]
[1752482407258,0.03315437,122490.0,122480.0,0.77757915]
[1752482407464,0.02499058,122490.0,122480.0,0.45787212]
[1752482407675,0.02499058,122490.0,122480.0,0.77757909]
[1752482408399,0.02499058,122490.0,122480.0,0.45787206]
[1752482409037,0.18826921,122490.0,122480.0,0.45787219]
[1752482409253,0.196433,122490.0,122480.0,0.45887232]
[1752482409484,0.196433,122490.0,122480.0,0.45887239]
[1752482409678,0.196433,122490.0,122480.0,0.46703678]
[1752482410112,0.49981311,122490.0,122480.0,0.14664711]
[1752482410335,0.49981311,122490.0,122480.0,0.08334711]
[1752482410546,0.56611311,122490.0,122480.0,0.002]
[1752482410790,0.56611311,122490.0,122480.0,0.12644]
[1752482411227,0.24640608,122490.0,122480.0,0.001]
[1752482411440,0.18010608,122490.0,122480.0,0.001]
[1752482411882,0.18010608,122490.0,122480.0,0.12538141]
[1752482412288,0.18110608,122490.0,122480.0,0.12444]
[1752482412497,0.18310608,122490.0,122480.0,0.12444]
[1752482416932,0.17962054,122480.0,122470.0,0.12877769]
[1752482417141,0.18778507,122480.0,122470.0,0.3345248]
[1752482418012,0.17962088,122480.0,122470.0,0.2101248]
[1752482418215,0.16330529,122470.0,122460.0,0.4037]
[1752482418393,0.1959652,122470.0,122460.0,0.61761304]
[1752482418929,0.18779994,122470.0,122460.0,0.79726326]
[1752482419270,0.18779994,122470.0,122460.0,0.80542892]
[1752482419271,0.01632959,122470.0,122460.0,0.80542892]
[1752482419473,0.02449458,122470.0,122460.0,0.80542892]
[1752482419793,0.19596506,122470.0,122460.0,0.67286332]
[1752482419993,0.195965,122470.0,122460.0,0.80542905]
[1752482420158,0.18779987,122470.0,122460.0,0.81359424]
[1752482420540,0.195965,122470.0,122460.0,0.81459424]
[1752482420748,0.17145655,122480.0,122470.0,0.16330529]
[1752482420970,0.17962108,122480.0,122470.0,0.23517048]
[1752482421512,0.18778541,122480.0,122470.0,0.23517048]
[1752482421712,0.18778541,122480.0,122470.0,0.0637]
[1752482421920,0.17145655,122480.0,122470.0,0.0637]
[1752482422103,0.17145655,122480.0,122470.0,0.1881]
[1752482422529,0.17145655,122480.0,122470.0,0.0637]
[1752482422780,0.17145655,122480.0,122470.0,0.1881]
[1752482423587,0.00816526,122470.0,122460.0,0.45344711]
[1752482423763,0.17963534,122470.0,122460.0,0.66469726]
[1752482423964,0.18780027,122470.0,122460.0,0.68102831]
[1752482424162,0.18780027,122470.0,122460.0,0.80542831]
[1752482424393,0.02449498,122470.0,122460.0,0.80542831]
[1752482424905,0.02449498,122470.0,122460.0,0.79926285]
[1752482425115,0.49164899,122490.0,122470.0,0.25150034]
[1752482425278,0.0005,122490.0,122480.0,0.90133909]
[1752482425843,0.00866333,122490.0,122480.0,0.58163206]
[1752482426039,0.00866333,122490.0,122480.0,0.57346793]
[1752482426243,0.0005,122490.0,122480.0,0.90950328]
[1752482426688,0.0005,122490.0,122480.0,1.22921031]
[1752482427573,0.0025,122490.0,122480.0,1.22921031]
[1752482428404,0.0005,122490.0,122480.0,1.22921031]
[1752482428581,0.0005,122490.0,122480.0,1.21301031]
[1752482430874,0.0005,122490.0,122480.0,1.22144136]
[1752482431398,0.0005,122490.0,122480.0,1.21301031]
[1752482432630,0.0005,122490.0,122480.0,1.55301031]
[1752482433266,0.0005,122490.0,122480.0,1.55841031]
[1752482435098,0.0005,122490.0,122480.0,1.56683722]
[1752482435931,0.0005,122490.0,122480.0,1.55841031]
[1752482438181,0.0005,122490.0,122480.0,1.56664816]
[1752482438604,0.0005,122490.0,122480.0,1.23330328]
[1752482440060,0.0005,122490.0,122480.0,0.66479625]
[1752482440259,0.02499031,122490.0,122480.0,0.6403036]
[1752482440461,0.18826988,122490.0,122480.0,0.42334711]
[1752482440681,0.21280629,122490.0,122480.0,0.20770711]
[1752482440874,0.24570629,122490.0,122480.0,0.08334711]
[1752482441098,0.24570629,122490.0,122480.0,0.002]
[1752482441298,0.24570629,122490.0,122480.0,0.12636]
[1752482442396,0.21280629,122490.0,122480.0,0.13452459]
[1752482442794,0.20464256,122490.0,122480.0,0.13452459]
[1752482442982,0.19647863,122490.0,122480.0,0.12636]
[1752482443773,0.19647863,122490.0,122480.0,0.13452459]
[1752482444200,0.19647863,122490.0,122480.0,0.14268912]
[1752482445035,0.19647863,122490.0,122480.0,0.13452459]
[1752482447868,0.19647863,122490.0,122480.0,0.12636]
[1752482449099,0.19647863,122490.0,122480.0,0.13452459]
[1752482450140,0.19647863,122490.0,122480.0,0.14268905]
[1752482450344,0.19647863,122490.0,122480.0,0.30598101]
[1752482450746,0.19647863,122490.0,122480.0,0.29781655]
[1752482451455,0.16377863,122490.0,122480.0,0.29781655]
[1752482451637,0.16377863,122490.0,122480.0,0.30598108]
[1752482453235,0.16377863,122490.0,122480.0,0.12636]
[1752482453673,0.16377863,122490.0,122480.0,0.13452453]
[1752482454301,0.16377863,122490.0,122480.0,0.62568785]
[1752482454711,0.16377863,122490.0,122480.0,0.62568798]
[1752482455324,0.16377863,122490.0,122480.0,0.63385237]
[1752482455552,0.16377863,122490.0,122480.0,0.66565237]
[1752482456264,0.01682698,122490.0,122480.0,0.79542794]
[1752482456768,0.02499071,122490.0,122480.0,0.79542794]
[1752482457758,0.0331545,122490.0,122480.0,0.79542794]
[1752482458988,0.0413189,122490.0,122480.0,0.78726381]
[1752482459194,0.0413189,122490.0,122480.0,0.79542807]
[1752482459345,0.0413189,122490.0,122480.0,0.79542773]
[1752482459542,0.0413189,122490.0,122480.0,0.7954274]
[1752482460010,0.03315497,122490.0,122480.0,0.7954274]
[1752482460428,0.01682732,122490.0,122480.0,0.7954274]
[1752482461026,0.0005,122490.0,122480.0,1.11513443]
[1752482464326,0.0005,122490.0,122480.0,1.30561268]
[1752482465208,0.0005,122490.0,122480.0,1.64561268]
[1752482465425,0.0005,122490.0,122480.0,1.99028268]
[1752482465635,0.0054,122500.0,122490.0,0.57297664]
[1752482465854,0.0054,122500.0,122490.0,1.01510144]
[1752482466480,0.0054,122500.0,122490.0,1.02050144]
[1752482467586,0.0054,122500.0,122490.0,1.29612284]
[1752482468227,0.0054,122500.0,122490.0,1.29312284]
[1752482469081,0.0054,122500.0,122490.0,1.48660109]
[1752482469708,0.0054,122500.0,122490.0,1.48860109]
[1752482472545,0.0054,122500.0,122490.0,1.49672097]
[1752482476031,0.0054,122500.0,122490.0,1.54569097]
[1752482479890,0.0054,122500.0,122490.0,1.48061328]
[1752482490554,0.0054,122500.0,122490.0,1.29013503]
[1752482491804,0.0054,122500.0,122490.0,1.63013503]
[1752482493025,0.0054,122500.0,122490.0,1.62997503]
[1752482493422,0.0054,122500.0,122490.0,1.82565503]
[1752482497918,0.0054,122500.0,122490.0,2.06087042]
[1752482499611,0.0054,122500.0,122490.0,2.06087042]
[1752482518849,0.0054,122500.0,122490.0,2.06075042]
[1752482523566,0.0054,122500.0,122490.0,1.93655042]
[1752482524031,0.0054,122500.0,122490.0,1.49268339]
[1752482524237,0.0054,122500.0,122490.0,1.81239042]
[1752482524469,0.0054,122500.0,122490.0,1.93655042]
[1752482525773,0.0054,122500.0,122490.0,1.81239042]
[1752482525973,0.0054,122500.0,122490.0,1.93655042]
[1752482526398,0.0054,122500.0,122490.0,1.81239042]
[1752482526605,0.0054,122500.0,122490.0,1.93655042]
[1752482526982,0.0054,122500.0,122490.0,1.81239042]
[1752482527235,0.0054,122500.0,122490.0,1.93655042]
[1752482527452,0.0054,122500.0,122490.0,1.77949042]
[1752482528208,0.0054,122500.0,122490.0,1.90365042]
[1752482528846,0.0054,122500.0,122490.0,1.93535042]
[1752482529703,0.0054,122500.0,122490.0,1.81119042]
[1752482529930,0.0054,122500.0,122490.0,1.93535042]
[1752482532297,0.0054,122500.0,122490.0,1.81119042]
[1752482532509,0.0054,122500.0,122490.0,1.93535042]
[1752482533351,0.0054,122500.0,122490.0,1.81119042]
[1752482533566,0.0054,122500.0,122490.0,1.93535042]
[1752482535510,0.0054,122500.0,122490.0,1.81119042]
[1752482535741,0.0054,122500.0,122490.0,1.93531042]
[1752482536896,0.0054,122500.0,122490.0,1.81119042]
[1752482537335,0.0054,122500.0,122490.0,1.93531042]
[1752482539702,0.0054,122500.0,122490.0,1.81119042]
[1752482540100,0.0054,122500.0,122490.0,1.93531042]
[1752482540785,0.0054,122500.0,122490.0,1.81119042]
[1752482540988,0.0054,122500.0,122490.0,1.93531042]
[1752482541195,0.0054,122500.0,122490.0,1.81119042]
[1752482541385,0.0054,122500.0,122490.0,1.93531042]
[1752482547128,0.0054,122500.0,122490.0,2.09475903]
[1752482547371,0.0054,122500.0,122490.0,2.06305903]
[1752482547764,0.0054,122500.0,122490.0,2.09525903]
[1752482547969,0.0054,122500.0,122490.0,2.06305903]
[1752482548386,0.0054,122500.0,122490.0,2.09625903]
[1752482548596,0.0054,122500.0,122490.0,2.04728903]
[1752482548772,0.0366,122500.0,122490.0,1.01423199]
[1752482548980,0.0366,122500.0,122490.0,1.25380981]
[1752482549181,0.0366,122500.0,122490.0,1.59380981]
[1752482549351,0.0366,122500.0,122490.0,1.71788981]
[1752482549748,0.0366,122500.0,122490.0,1.71488981]
[1752482550006,0.0366,122500.0,122490.0,1.47767442]
[1752482550142,0.0366,122500.0,122490.0,1.47867442]
[1752482550970,0.0366,122500.0,122490.0,1.55860039]
[1752482551211,0.0366,122500.0,122490.0,1.55960039]
[1752482551871,0.0366,122500.0,122490.0,1.2400966]
[1752482552069,0.0366,122500.0,122490.0,1.55960039]
[1752482552282,0.0054,122500.0,122490.0,1.2400966]
[1752482552499,0.0054,122500.0,122490.0,1.59050039]
[1752482552717,0.0054,122500.0,122490.0,1.46642039]
[1752482552941,0.0054,122500.0,122490.0,1.59050039]
[1752482553333,0.0054,122500.0,122490.0,1.46642039]
[1752482553556,0.0054,122500.0,122490.0,1.59050039]
[1752482553938,0.0054,122500.0,122490.0,1.62340039]
[1752482554153,0.0054,122500.0,122490.0,1.85861578]
[1752482554519,0.0054,122500.0,122490.0,1.82571578]
[1752482555551,0.0054,122500.0,122490.0,1.70163578]
[1752482555736,0.0054,122500.0,122490.0,1.82571578]
[1752482556109,0.0054,122500.0,122490.0,1.59050039]
[1752482557021,0.0054,122500.0,122490.0,1.2709966]
[1752482557197,0.0054,122500.0,122490.0,1.59050039]
[1752482557784,0.0054,122500.0,122490.0,1.46642039]
[1752482557997,0.0054,122500.0,122490.0,1.59050039]
[1752482559264,0.0054,122500.0,122490.0,1.43552039]
[1752482559461,0.0054,122500.0,122490.0,1.55960039]
[1752482560260,0.0054,122500.0,122490.0,1.46822039]
[1752482560465,0.0054,122500.0,122490.0,1.59230039]
[1752482561133,0.0054,122500.0,122490.0,1.74838039]
[1752482561773,0.0054,122500.0,122490.0,1.79735039]
[1752482564887,0.0054,122500.0,122490.0,1.79195039]
[1752482566828,0.0054,122500.0,122490.0,1.4724466]
[1752482566967,0.0054,122500.0,122490.0,1.79195039]
[1752482569194,0.0054,122500.0,122490.0,1.74298039]
[1752482570121,0.0054,122500.0,122490.0,1.71098039]
[1752482571845,0.0054,122500.0,122490.0,1.74148039]
[1752482576337,0.0054,122500.0,122490.0,1.4219766]
[1752482576550,0.0054,122500.0,122490.0,1.74148039]
[1752482576793,0.0054,122500.0,122490.0,1.79045039]
[1752482577927,0.0054,122500.0,122490.0,2.02566578]
[1752482579749,0.0004,122510.0,122500.0,0.64322427]
[1752482579962,0.0004,122510.0,122500.0,1.29219517]
[1752482579963,0.00091101,122510.0,122500.0,1.29219517]
[1752482580274,0.00091101,122510.0,122500.0,1.52741056]
[1752482580973,0.00091101,122510.0,122500.0,1.47844056]
[1752482581459,0.00081101,122510.0,122500.0,1.47844056]
[1752482581691,0.00081101,122510.0,122500.0,1.77414056]
[1752482581948,0.00081101,122510.0,122500.0,1.77714056]
[1752482582186,0.00081101,122510.0,122500.0,1.54192517]
[1752482582661,0.00081101,122510.0,122500.0,1.54592517]
[1752482583337,0.0054,122520.0,122510.0,0.59193896]
[1752482583516,0.00545108,122520.0,122510.0,1.43142708]
[1752482584666,0.00545108,122520.0,122510.0,1.43342708]
[1752482585088,0.00545108,122520.0,122510.0,1.11392329]
[1752482585303,0.00545108,122520.0,122510.0,1.43342708]
[1752482585512,0.00545108,122520.0,122510.0,1.24286986]
[1752482586146,0.00545108,122520.0,122510.0,1.24486986]
[1752482586761,0.00545108,122520.0,122510.0,1.24286986]
[1752482587178,0.00545108,122520.0,122510.0,1.24486986]
[1752482587603,0.00545108,122520.0,122510.0,1.86007365]